[Event "23rd ETCC Women 2021"]
[Site "Catez"]
[Date "2021.11.20"]
[Round "8.23"]
[White "Simkunaite, Gabija"]
[Black "Sargsyan, Anna M."]
[Result "1-0"]
[ECO "B13"]
[WhiteElo "1962"]
[BlackElo "2385"]
[Annotator "NA"]
[PlyCount "105"]
[EventDate "2021.11.08"]
[EventType "team-tourn"]
[EventCountry "SLO"]
[SourceTitle "playchess.com"]
[Source "ChessBase"]
[SourceQuality "1"]
[WhiteTeam "Lithuania"]
[BlackTeam "Armenia"]
[WhiteTeamCountry "LTU"]
[BlackTeamCountry "ARM"]
[TimeControl "40/5400+30:1800+30"]

1. e4 {[%emt 0:00:00]} c6 {[%emt 0:47:50]} 2. d4 {[%emt 0:00:00]} d5 {[%emt 0:
00:30]} 3. exd5 {[%emt 0:00:00]} cxd5 {[%emt 0:00:30]} 4. Bd3 {[%emt 0:00:00]}
Nc6 {[%emt 0:00:30]} 5. c3 {[%emt 0:00:00]} Nf6 {[%emt 0:00:30]} 6. Bf4 {
[%emt 0:00:00]} Bg4 {[%emt 0:00:30]} 7. Qb3 {[%emt 0:00:16]} e5 {[%emt 0:00:30]
} 8. dxe5 {[%emt 0:00:30]} Nh5 {[%emt 0:00:30]} 9. Be3 {[%emt 0:00:30]} Nxe5 {
[%emt 0:00:30]} 10. Bb5+ {[%emt 0:00:30]} Nc6 {[%emt 0:00:30]} 11. Qa4 {
[%emt 0:00:30]} Bd7 {[%emt 0:00:30]} 12. Nf3 {[%emt 0:00:30]} Bd6 {[%emt 0:00:
30]} 13. O-O {[%emt 0:00:30]} O-O {[%emt 0:00:30]} 14. Rd1 {[%emt 0:00:30]} a6
{[%emt 0:00:30]} 15. Rxd5 {[%emt 0:00:30]} axb5 {[%emt 0:00:30]} 16. Qd1 {
[%emt 0:00:30]} Bg4 {[%emt 0:00:30]} 17. Rxd6 {[%emt 0:00:30]} Qe7 {[%emt 0:00:
30]} 18. Rd5 {[%emt 0:00:30]} Rfd8 {[%emt 0:00:30]} 19. Rxd8+ {[%emt 0:00:30]}
Rxd8 {[%emt 0:00:30]} 20. Nbd2 {[%emt 0:00:30]} Ne5 {[%emt 0:00:30]} 21. Qb3 {
[%emt 0:00:30]} Bxf3 {[%emt 0:00:30]} 22. Nxf3 {[%emt 0:00:30]} Nxf3+ {[%emt 0:
00:30]} 23. gxf3 {[%emt 0:00:30]} Qd7 {[%emt 0:00:30]} 24. a4 {[%emt 0:00:30]}
bxa4 {[%emt 0:00:30]} 25. Qxa4 {[%emt 0:00:30]} Qd6 {[%emt 0:00:30]} 26. Qb4 {
[%emt 0:00:30]} Nf6 {[%emt 0:00:30]} 27. Qxb7 {[%emt 0:00:30]} Nd5 {[%emt 0:00:
30]} 28. Ra6 {[%emt 0:00:30]} Qf8 {[%emt 0:00:30]} 29. Bd4 {[%emt 0:00:30]} Qe8
{[%emt 0:00:30]} 30. Ra1 {[%emt 0:00:30]} h6 {[%emt 0:00:30]} 31. c4 {[%emt 0:
00:30]} Nf4 {[%emt 0:00:30]} 32. Be3 {[%emt 0:00:30]} Qe5 {[%emt 0:00:30]} 33.
Bxf4 {[%emt 0:00:30]} Qxf4 {[%emt 0:00:30]} 34. Qe4 {[%emt 0:00:30]} Qg5+ {
[%emt 0:00:30]} 35. Kf1 {[%emt 0:00:30]} Qd2 {[%emt 0:00:30]} 36. Rb1 {[%emt 0:
00:30]} Rd6 {[%emt 0:00:30]} 37. Qe3 {[%emt 0:00:30]} Qb4 {[%emt 0:00:30]} 38.
Qe8+ {[%emt 0:00:30]} Kh7 {[%emt 0:00:30]} 39. Qxf7 {[%emt 0:00:30]} Qc5 {
[%emt 0:00:30]} 40. b4 {[%emt 0:00:30]} Qc8 {[%emt 0:00:30]} 41. Qf4 {[%emt 0:
30:30]} Qh3+ {[%emt 0:30:30]} 42. Ke2 {[%emt 0:00:30]} Rf6 {[%emt 0:00:30]} 43.
Qg4 {[%emt 0:00:30]} Qxh2 {[%emt 0:00:30]} 44. Rb3 {[%emt 0:00:30]} Qc7 {
[%emt 0:00:30]} 45. Qe4+ {[%emt 0:00:30]} Kg8 {[%emt 0:00:30]} 46. Re3 {
[%emt 0:00:30]} Rf4 {[%emt 0:00:30]} 47. Qd5+ {[%emt 0:00:30]} Kh7 {[%emt 0:00:
30]} 48. Re4 {[%emt 0:00:30]} Rf6 {[%emt 0:00:30]} 49. c5 {[%emt 0:00:30]} Qa7
{[%emt 0:00:30]} 50. Re3 {[%emt 0:00:30]} Qa1 {[%emt 0:00:30]} 51. Qd3+ {
[%emt 0:00:30]} Kg8 {[%emt 0:00:30]} 52. Qb3+ {[%emt 0:00:30]} Kh7 {[%emt 0:00:
30]} 53. b5 {[%emt 0:00:30]} 1-0

[Event "23rd ETCC Women 2021"]
[Site "Catez"]
[Date "2021.11.20"]
[Round "8.24"]
[White "Ghukasyan, Siranush"]
[Black "Sibajeva, Marija"]
[Result "1/2-1/2"]
[ECO "B01"]
[WhiteElo "2168"]
[BlackElo "1946"]
[Annotator "NA"]
[PlyCount "60"]
[EventDate "2021.11.08"]
[EventType "team-tourn"]
[EventCountry "SLO"]
[SourceTitle "playchess.com"]
[Source "ChessBase"]
[SourceQuality "1"]
[WhiteTeam "Armenia"]
[BlackTeam "Lithuania"]
[WhiteTeamCountry "ARM"]
[BlackTeamCountry "LTU"]
[TimeControl "40/5400+30:1800+30"]

1. e4 {[%emt 0:00:03]} d5 {[%emt 0:00:06]} 2. exd5 {[%emt 0:00:04]} Qxd5 {
[%emt 0:00:05]} 3. Nc3 {[%emt 0:00:04]} Qa5 {[%emt 0:00:06]} 4. d4 {[%emt 0:00:
03]} Nf6 {[%emt 0:00:06]} 5. Nf3 {[%emt 0:00:04]} Bf5 {[%emt 0:00:08]} 6. Bc4 {
[%emt 0:00:07]} e6 {[%emt 0:00:05]} 7. Bd2 {[%emt 0:00:10]} Bb4 {[%emt 0:00:07]
} 8. Nh4 {[%emt 0:02:57]} Bg6 {[%emt 0:01:36]} 9. Nxg6 {[%emt 0:00:40]} hxg6 {
[%emt 0:00:09]} 10. Qe2 {[%emt 0:01:27]} Qh5 {[%emt 0:09:35]} 11. O-O-O {
[%emt 0:04:29]} Qxe2 {[%emt 0:00:56]} 12. Bxe2 {[%emt 0:00:09]} Nc6 {[%emt 0:
01:01]} 13. Nb5 {[%emt 0:07:09]} Bxd2+ {[%emt 0:00:35]} 14. Rxd2 {[%emt 0:00:
08]} O-O-O {[%emt 0:01:22]} 15. Bf3 {[%emt 0:00:36]} a6 {[%emt 0:07:27]} 16.
Bxc6 {[%emt 0:04:53]} bxc6 {[%emt 0:00:10]} 17. Na3 {[%emt 0:04:20]} Ne4 {
[%emt 0:01:49]} 18. Re2 {[%emt 0:00:13]} Rxd4 {[%emt 0:00:22]} 19. c3 {[%emt 0:
00:04]} Ra4 {[%emt 0:00:09]} 20. Nc2 {[%emt 0:06:41]} Nd6 {[%emt 0:06:44]} 21.
Nb4 {[%emt 0:02:10]} Kb7 {[%emt 0:04:34]} 22. Re5 {[%emt 0:07:31]} Rh5 {
[%emt 0:00:55]} 23. Rhe1 {[%emt 0:00:30]} Ra5 {[%emt 0:10:39]} 24. Rxa5 {
[%emt 0:03:59]} Rxa5 {[%emt 0:00:06]} 25. a3 {[%emt 0:02:13]} Rg5 {[%emt 0:04:
16]} 26. g3 {[%emt 0:01:02]} Rf5 {[%emt 0:01:08]} 27. Nd3 {[%emt 0:00:32]} Kb6
{[%emt 0:11:40]} 28. Kc2 {[%emt 0:00:32]} g5 {[%emt 0:01:21]} 29. Re2 {[%emt 0:
01:05]} g4 {[%emt 0:10:30]} 30. Ne5 {[%emt 0:00:16]} Rg5 {[%emt 0:00:43]}
1/2-1/2

[Event "23rd ETCC Women 2021"]
[Site "Catez"]
[Date "2021.11.20"]
[Round "8.25"]
[White "Paehtz, Elisabeth"]
[Black "Atalik, Ekaterina"]
[Result "1/2-1/2"]
[ECO "B19"]
[WhiteElo "2485"]
[BlackElo "2430"]
[Annotator "ChessBase"]
[PlyCount "117"]
[EventDate "2021.11.08"]
[EventType "team-tourn"]
[EventCountry "SLO"]
[SourceTitle "playchess.com"]
[Source "ChessBase"]
[SourceQuality "1"]
[WhiteTeam "Germany"]
[BlackTeam "Turkey"]
[WhiteTeamCountry "GER"]
[BlackTeamCountry "TUR"]
[TimeControl "40/5400+30:1800+30"]

1. e4 {[%emt 0:00:02]} c6 {[%emt 0:00:13]} 2. Nc3 {[%emt 0:00:06]} d5 {[%emt 0:
00:13]} 3. d4 {[%emt 0:00:24]} dxe4 {[%emt 0:00:13]} 4. Nxe4 {[%emt 0:00:05]}
Bf5 {[%emt 0:00:08]} 5. Ng3 {[%emt 0:00:04]} Bg6 {[%emt 0:00:08]} 6. h4 {
[%emt 0:00:07]} h6 {[%emt 0:00:18]} 7. Nf3 {[%emt 0:00:06]} e6 {[%emt 0:00:17]}
8. Ne5 {[%emt 0:00:05]} Bh7 {[%emt 0:00:10]} 9. Bd3 {[%emt 0:00:04]} Bxd3 {
[%emt 0:00:26]} 10. Qxd3 {[%emt 0:00:05]} Nd7 {[%emt 0:00:43]} 11. Qe2 {
[%emt 0:00:17]} Ngf6 {[%emt 0:02:04]} 12. Bd2 {[%emt 0:00:42]} Be7 {[%emt 0:02:
54]} 13. O-O-O {[%emt 0:00:00]} O-O {[%emt 0:01:30]} 14. f4 {[%emt 0:02:08]}
Bd6 {[%emt 0:10:18]} 15. Kb1 {[%emt 0:02:22]} Qc7 {[%emt 0:04:02]} 16. Qf3 {
[%emt 0:32:18]} b5 {[%emt 0:08:13]} 17. Ne2 {[%emt 0:07:54]} h5 {[%emt 0:08:18]
} 18. Rhg1 {[%emt 0:09:41]} Bxe5 {[%emt 0:05:08]} 19. dxe5 {[%emt 0:02:42]} Ng4
{[%emt 0:00:41]} 20. Ng3 {[%emt 0:00:50]} g6 {[%emt 0:02:25]} 21. Ne4 {[%emt 0:
13:43]} Rad8 {[%emt 0:11:15]} 22. Be3 {[%emt 0:06:10]} c5 {[%emt 0:10:23]} 23.
Rd2 {[%emt 0:05:17]} b4 {[%emt 0:05:01]} 24. Rgd1 {[%emt 0:02:24]} Kg7 {
[%emt 0:10:09]} 25. Rd6 {[%emt 0:02:04]} c4 {[%emt 0:02:04]} 26. g3 {[%emt 0:
04:16]} c3 {[%emt 0:02:27]} 27. Bg1 {[%emt 0:00:56]} Nb6 {[%emt 0:02:47]} 28.
Bxb6 {[%emt 0:01:06]} axb6 {[%emt 0:00:03]} 29. Rxd8 {[%emt 0:01:17]} Rxd8 {
[%emt 0:00:06]} 30. Rxd8 {[%emt 0:00:04]} Qxd8 {[%emt 0:00:09]} 31. Nd6 {
[%emt 0:02:25]} Qd7 {[%emt 0:06:04]} 32. bxc3 {[%emt 0:01:15]} bxc3 {[%emt 0:
00:32]} 33. Qxc3 {[%emt 0:00:08]} Nh6 {[%emt 0:02:08]} 34. Qc4 {[%emt 0:02:48]}
Ng4 {[%emt 0:01:47]} 35. Qe4 {[%emt 0:01:52]} Nh6 {[%emt 0:00:44]} 36. Kb2 {
[%emt 0:00:15]} Nf5 {[%emt 0:01:31]} 37. Nxf5+ {[%emt 0:00:15]} gxf5 {[%emt 0:
00:10]} 38. Qc4 {[%emt 0:00:24]} Qd2 {[%emt 0:00:28]} 39. a4 {[%emt 0:00:35]}
Qe1 {[%emt 0:00:26]} 40. Qb3 {[%emt 0:00:55]} Qf2 {[%emt 0:00:14]} 41. Qc3 {
[%emt 0:30:17]} Qg1 {[%emt 0:31:48]} 42. Kb3 {[%emt 0:00:00]} Qb1+ {[%emt 0:00:
00]} 43. Kc4 {[%emt 0:00:00]} Qf1+ {[%emt 0:00:00]} 44. Kb4 {[%emt 0:00:00]}
Qb1+ {[%emt 0:00:00]} 45. Qb3 {[%emt 0:00:00]} Qf1 {[%emt 0:00:00]} 46. Qc3 {
[%emt 0:00:00]} Qb1+ {[%emt 0:00:00]} 47. Ka3 {[%emt 0:00:00]} Qg1 {[%emt 0:00:
00]} 48. Kb2 {[%emt 0:00:00]} Qf2 {[%emt 0:00:00]} 49. Qd3 {[%emt 0:00:00]} Qg1
{[%emt 0:00:00]} 50. Qf3 {[%emt 0:00:00]} Qd4+ {[%emt 0:00:00]} 51. Kb3 {
[%emt 0:00:00]} Qg1 {[%emt 0:00:00]} 52. Kc4 {[%emt 0:00:00]} Qc5+ {[%emt 0:00:
00]} 53. Kb3 {[%emt 0:00:00]} Qg1 {[%emt 0:00:00]} 54. Ka2 {[%emt 0:00:00]} Qd4
{[%emt 0:00:00]} 55. Qb3 {[%emt 0:00:00]} Qf2 {[%emt 0:00:00]} 56. Qc3 {
[%emt 0:00:00]} Qg1 {[%emt 0:00:00]} 57. Kb2 {[%emt 0:00:00]} Qf2 {[%emt 0:00:
00]} 58. Kb3 {[%emt 0:00:00]} Qg1 {[%emt 0:00:22]} 59. Kb4 {[%emt 0:00:00]}
1/2-1/2

[Event "23rd ETCC Women 2021"]
[Site "Catez"]
[Date "2021.11.20"]
[Round "8.26"]
[White "Caglar, Sila"]
[Black "Heinemann, Josefine"]
[Result "0-1"]
[ECO "B23"]
[WhiteElo "2250"]
[BlackElo "2336"]
[Annotator "NA"]
[PlyCount "52"]
[EventDate "2021.11.08"]
[EventType "team-tourn"]
[EventCountry "SLO"]
[SourceTitle "playchess.com"]
[Source "ChessBase"]
[SourceQuality "1"]
[WhiteTeam "Turkey"]
[BlackTeam "Germany"]
[WhiteTeamCountry "TUR"]
[BlackTeamCountry "GER"]
[TimeControl "40/5400+30:1800+30"]

1. e4 {[%emt 0:00:03]} c5 {[%emt 0:00:05]} 2. Nc3 {[%emt 0:00:04]} d6 {[%emt 0:
00:06]} 3. f4 {[%emt 0:00:05]} g6 {[%emt 0:00:14]} 4. Nf3 {[%emt 0:00:05]} Bg7
{[%emt 0:00:35]} 5. Bb5+ {[%emt 0:00:33]} Bd7 {[%emt 0:00:49]} 6. Bc4 {[%emt 0:
00:07]} Nc6 {[%emt 0:01:20]} 7. O-O {[%emt 0:02:54]} e6 {[%emt 0:03:26]} 8. f5
{[%emt 0:02:24]} Nf6 {[%emt 0:02:08]} 9. d3 {[%emt 0:08:32]} O-O {[%emt 0:04:
14]} 10. Qe1 {[%emt 0:09:06]} Nd4 {[%emt 0:13:29]} 11. Qh4 {[%emt 0:08:31]} d5
{[%emt 0:06:47]} 12. Nxd4 {[%emt 0:24:17]} cxd4 {[%emt 0:06:44]} 13. e5 {
[%emt 0:10:24]} dxc3 {[%emt 0:03:36]} 14. Bg5 {[%emt 0:02:07]} h6 {[%emt 0:05:
27]} 15. Bxh6 {[%emt 0:07:02]} Ng4 {[%emt 0:04:30]} 16. Qxg4 {[%emt 0:05:39]}
exf5 {[%emt 0:01:41]} 17. Qf4 {[%emt 0:04:16]} dxc4 {[%emt 0:00:57]} 18. bxc3 {
[%emt 0:00:06]} Bc6 {[%emt 0:04:44]} 19. Rae1 {[%emt 0:04:54]} cxd3 {[%emt 0:
03:22]} 20. cxd3 {[%emt 0:00:20]} Qxd3 {[%emt 0:01:21]} 21. Qg5 {[%emt 0:07:06]
} Qd8 {[%emt 0:01:46]} 22. Qf4 {[%emt 0:00:01]} Re8 {[%emt 0:01:43]} 23. Rf2 {
[%emt 0:01:53]} Qd5 {[%emt 0:00:59]} 24. Bxg7 {[%emt 0:01:20]} Kxg7 {[%emt 0:
00:05]} 25. Rd2 {[%emt 0:00:13]} Qc5+ {[%emt 0:01:12]} 26. Kh1 {[%emt 0:00:14]}
Qxc3 {[%emt 0:01:28]} 0-1

[Event "23rd ETCC Women 2021"]
[Site "Catez"]
[Date "2021.11.20"]
[Round "8.27"]
[White "Klek, Hanna Marie"]
[Black "Kocyigit, Buse Naz"]
[Result "1-0"]
[ECO "C48"]
[WhiteElo "2343"]
[BlackElo "2034"]
[Annotator "NA"]
[PlyCount "72"]
[EventDate "2021.11.08"]
[EventType "team-tourn"]
[EventCountry "SLO"]
[SourceTitle "playchess.com"]
[Source "ChessBase"]
[SourceQuality "1"]
[WhiteTeam "Germany"]
[BlackTeam "Turkey"]
[WhiteTeamCountry "GER"]
[BlackTeamCountry "TUR"]
[TimeControl "40/5400+30:1800+30"]

1. e4 {[%emt 0:00:02]} e5 {[%emt 0:00:16]} 2. Nf3 {[%emt 0:00:10]} Nf6 {
[%emt 0:00:09]} 3. Nc3 {[%emt 0:00:59]} Nc6 {[%emt 0:00:05]} 4. Bb5 {[%emt 0:
03:43]} Bd6 {[%emt 0:00:05]} 5. a3 {[%emt 0:01:31]} O-O {[%emt 0:01:50]} 6. d3
{[%emt 0:00:00]} a6 {[%emt 0:03:39]} 7. Bc4 {[%emt 0:01:05]} b5 {[%emt 0:04:22]
} 8. Ba2 {[%emt 0:00:12]} Bb7 {[%emt 0:01:54]} 9. Bg5 {[%emt 0:06:07]} Be7 {
[%emt 0:03:39]} 10. h4 {[%emt 0:08:28]} d6 {[%emt 0:01:46]} 11. Ne2 {[%emt 0:
02:21]} Bc8 {[%emt 0:03:48]} 12. Bxf6 {[%emt 0:06:17]} Bxf6 {[%emt 0:00:02]}
13. Bd5 {[%emt 0:00:25]} Qe8 {[%emt 0:04:38]} 14. Ng5 {[%emt 0:13:47]} Rb8 {
[%emt 0:02:42]} 15. Ng3 {[%emt 0:04:24]} g6 {[%emt 0:17:32]} 16. Nf5 {[%emt 0:
15:54]} Bxf5 {[%emt 0:10:36]} 17. exf5 {[%emt 0:00:15]} Kg7 {[%emt 0:11:59]}
18. fxg6 {[%emt 0:07:24]} hxg6 {[%emt 0:00:39]} 19. c3 {[%emt 0:05:30]} Ne7 {
[%emt 0:01:52]} 20. Qf3 {[%emt 0:03:59]} e4 {[%emt 0:06:20]} 21. Bxe4 {[%emt 0:
00:19]} d5 {[%emt 0:00:24]} 22. O-O-O {[%emt 0:02:02]} dxe4 {[%emt 0:01:34]}
23. Nxe4 {[%emt 0:00:11]} Qc6 {[%emt 0:08:04]} 24. g4 {[%emt 0:01:07]} Bxc3 {
[%emt 0:09:10]} 25. bxc3 {[%emt 0:00:50]} f5 {[%emt 0:00:51]} 26. gxf5 {
[%emt 0:00:36]} Rxf5 {[%emt 0:00:10]} 27. Qe3 {[%emt 0:01:14]} b4 {[%emt 0:02:
16]} 28. Qd4+ {[%emt 0:00:25]} Kg8 {[%emt 0:00:27]} 29. axb4 {[%emt 0:00:29]}
Nd5 {[%emt 0:01:10]} 30. Qc4 {[%emt 0:00:57]} Qa4 {[%emt 0:01:45]} 31. Kb2 {
[%emt 0:02:43]} Rbf8 {[%emt 0:00:58]} 32. Rd2 {[%emt 0:00:56]} Qd7 {[%emt 0:01:
04]} 33. Ra1 {[%emt 0:02:29]} Qe7 {[%emt 0:00:41]} 34. Rxa6 {[%emt 0:00:32]}
Qxh4 {[%emt 0:00:20]} 35. Rxg6+ {[%emt 0:03:38]} Kh8 {[%emt 0:00:40]} 36. Qd4+
{[%emt 0:00:57]} Kh7 {[%emt 0:00:17]} 1-0

[Event "23rd ETCC Women 2021"]
[Site "Catez"]
[Date "2021.11.20"]
[Round "8.28"]
[White "Aydin, Gulenay"]
[Black "Lubbe, Melanie"]
[Result "0-1"]
[ECO "B63"]
[WhiteElo "2114"]
[BlackElo "2311"]
[Annotator "NA"]
[PlyCount "80"]
[EventDate "2021.11.08"]
[EventType "team-tourn"]
[EventCountry "SLO"]
[SourceTitle "playchess.com"]
[Source "ChessBase"]
[SourceQuality "1"]
[WhiteTeam "Turkey"]
[BlackTeam "Germany"]
[WhiteTeamCountry "TUR"]
[BlackTeamCountry "GER"]
[TimeControl "40/5400+30:1800+30"]

1. e4 {[%emt 0:00:07]} c5 {[%emt 0:00:05]} 2. Nf3 {[%emt 0:00:05]} d6 {[%emt 0:
00:06]} 3. d4 {[%emt 0:00:06]} cxd4 {[%emt 0:00:04]} 4. Nxd4 {[%emt 0:00:05]}
Nf6 {[%emt 0:00:06]} 5. Nc3 {[%emt 0:00:06]} Nc6 {[%emt 0:00:08]} 6. Bg5 {
[%emt 0:00:33]} e6 {[%emt 0:00:15]} 7. Qd2 {[%emt 0:01:26]} Be7 {[%emt 0:00:17]
} 8. Bxf6 {[%emt 0:04:34]} Bxf6 {[%emt 0:01:27]} 9. Nb3 {[%emt 0:08:07]} O-O {
[%emt 0:02:01]} 10. O-O-O {[%emt 0:03:13]} Qb6 {[%emt 0:12:13]} 11. f4 {
[%emt 0:10:35]} Rd8 {[%emt 0:11:03]} 12. g4 {[%emt 0:04:49]} Bd7 {[%emt 0:11:
01]} 13. g5 {[%emt 0:09:44]} Bxc3 {[%emt 0:00:41]} 14. Qxc3 {[%emt 0:00:11]}
Rac8 {[%emt 0:14:47]} 15. a3 {[%emt 0:24:27]} Ne7 {[%emt 0:01:50]} 16. Qf3 {
[%emt 0:14:35]} d5 {[%emt 0:05:10]} 17. e5 {[%emt 0:03:42]} Nf5 {[%emt 0:01:50]
} 18. Rd2 {[%emt 0:04:59]} d4 {[%emt 0:06:30]} 19. Qd3 {[%emt 0:04:13]} Bc6 {
[%emt 0:04:44]} 20. Rg1 {[%emt 0:00:33]} Bd5 {[%emt 0:01:35]} 21. Na1 {[%emt 0:
03:22]} Bc4 {[%emt 0:04:14]} 22. Qxc4 {[%emt 0:00:32]} Rxc4 {[%emt 0:00:07]}
23. Bxc4 {[%emt 0:00:03]} d3 {[%emt 0:05:54]} 24. Re1 {[%emt 0:00:17]} Qd4 {
[%emt 0:03:08]} 25. Bxd3 {[%emt 0:01:13]} Qxf4 {[%emt 0:00:13]} 26. Nb3 {
[%emt 0:00:25]} Qxg5 {[%emt 0:02:04]} 27. Kb1 {[%emt 0:01:01]} Nd4 {[%emt 0:06:
12]} 28. Bxh7+ {[%emt 0:00:34]} Kxh7 {[%emt 0:00:05]} 29. Rxd4 {[%emt 0:00:05]}
Rxd4 {[%emt 0:00:42]} 30. Nxd4 {[%emt 0:00:02]} Qd2 {[%emt 0:02:15]} 31. Re4 {
[%emt 0:00:05]} Qxh2 {[%emt 0:00:28]} 32. Ka2 {[%emt 0:00:15]} g5 {[%emt 0:00:
44]} 33. c3 {[%emt 0:01:00]} Qg2 {[%emt 0:01:14]} 34. Re2 {[%emt 0:00:28]} Qd5+
{[%emt 0:00:05]} 35. Kb1 {[%emt 0:00:19]} g4 {[%emt 0:00:36]} 36. Kc2 {[%emt 0:
01:12]} g3 {[%emt 0:01:05]} 37. Re3 {[%emt 0:00:49]} Qg2+ {[%emt 0:01:33]} 38.
Kb3 {[%emt 0:00:11]} Qg1 {[%emt 0:01:21]} 39. Rf3 {[%emt 0:00:34]} g2 {[%emt 0:
00:52]} 40. Rxf7+ {[%emt 0:00:17]} Kg8 {[%emt 0:00:16]} 0-1

[Event "23rd ETCC Women 2021"]
[Site "Catez"]
[Date "2021.11.20"]
[Round "8.29"]
[White "Injac, Teodora"]
[Black "Hapala, Elisabeth"]
[Result "1-0"]
[ECO "A11"]
[WhiteElo "2387"]
[BlackElo "2139"]
[Annotator "NA"]
[PlyCount "71"]
[EventDate "2021.11.08"]
[EventType "team-tourn"]
[EventCountry "SLO"]
[SourceTitle "playchess.com"]
[Source "ChessBase"]
[SourceQuality "1"]
[WhiteTeam "Serbia"]
[BlackTeam "Austria"]
[WhiteTeamCountry "SRB"]
[BlackTeamCountry "AUT"]
[TimeControl "40/5400+30:1800+30"]

1. Nf3 {[%emt 0:00:04]} Nf6 {[%emt 0:00:05]} 2. g3 {[%emt 0:00:30]} d5 {
[%emt 0:00:14]} 3. Bg2 {[%emt 0:00:22]} Bf5 {[%emt 0:00:05]} 4. O-O {[%emt 0:
01:22]} e6 {[%emt 0:00:13]} 5. c4 {[%emt 0:01:26]} c6 {[%emt 0:00:43]} 6. Qb3 {
[%emt 0:02:00]} Qb6 {[%emt 0:00:32]} 7. d3 {[%emt 0:00:00]} Nbd7 {[%emt 0:03:
20]} 8. Be3 {[%emt 0:00:47]} Bc5 {[%emt 0:00:06]} 9. Bxc5 {[%emt 0:03:43]} Nxc5
{[%emt 0:00:16]} 10. Qc3 {[%emt 0:01:11]} O-O {[%emt 0:14:28]} 11. b4 {[%emt 0:
03:09]} Ncd7 {[%emt 0:00:20]} 12. Nbd2 {[%emt 0:01:13]} h6 {[%emt 0:05:47]} 13.
Nb3 {[%emt 0:07:24]} Rfe8 {[%emt 0:08:59]} 14. a4 {[%emt 0:03:54]} e5 {[%emt 0:
05:11]} 15. a5 {[%emt 0:02:06]} Qd8 {[%emt 0:02:35]} 16. a6 {[%emt 0:03:51]} b6
{[%emt 0:00:39]} 17. Rfc1 {[%emt 0:10:56]} Rc8 {[%emt 0:09:06]} 18. Qd2 {
[%emt 0:10:57]} Qe7 {[%emt 0:04:11]} 19. c5 {[%emt 0:17:43]} b5 {[%emt 0:15:24]
} 20. Na5 {[%emt 0:00:20]} Rf8 {[%emt 0:00:38]} 21. Nb7 {[%emt 0:05:36]} Ne8 {
[%emt 0:00:27]} 22. e4 {[%emt 0:02:22]} Be6 {[%emt 0:04:04]} 23. exd5 {[%emt 0:
02:50]} Bxd5 {[%emt 0:00:10]} 24. Re1 {[%emt 0:00:14]} f6 {[%emt 0:18:10]} 25.
Nh4 {[%emt 0:00:38]} Qf7 {[%emt 0:04:57]} 26. Be4 {[%emt 0:00:28]} Bxe4 {
[%emt 0:00:58]} 27. dxe4 {[%emt 0:00:27]} Nb8 {[%emt 0:00:20]} 28. Nf5 {
[%emt 0:00:40]} Rc7 {[%emt 0:01:29]} 29. Red1 {[%emt 0:03:36]} Rd7 {[%emt 0:00:
31]} 30. Qe2 {[%emt 0:01:58]} Rxd1+ {[%emt 0:00:31]} 31. Rxd1 {[%emt 0:01:53]}
Nc7 {[%emt 0:00:56]} 32. Nd8 {[%emt 0:02:29]} Qb3 {[%emt 0:00:03]} 33. Qg4 {
[%emt 0:00:41]} Ne8 {[%emt 0:00:54]} 34. Nxh6+ {[%emt 0:01:00]} Kh7 {[%emt 0:
00:02]} 35. Nf5 {[%emt 0:00:51]} g6 {[%emt 0:01:03]} 36. Ne7 {[%emt 0:01:42]}
1-0

[Event "23rd ETCC Women 2021"]
[Site "Catez"]
[Date "2021.11.20"]
[Round "8.30"]
[White "Teuschler, Barbara"]
[Black "Eric, Jovana"]
[Result "1/2-1/2"]
[ECO "D00"]
[WhiteElo "2115"]
[BlackElo "2253"]
[Annotator "NA"]
[PlyCount "86"]
[EventDate "2021.11.08"]
[EventType "team-tourn"]
[EventCountry "SLO"]
[SourceTitle "playchess.com"]
[Source "ChessBase"]
[SourceQuality "1"]
[WhiteTeam "Austria"]
[BlackTeam "Serbia"]
[WhiteTeamCountry "AUT"]
[BlackTeamCountry "SRB"]
[TimeControl "40/5400+30:1800+30"]

1. d4 {[%emt 0:00:01]} Nf6 {[%emt 0:00:10]} 2. Bf4 {[%emt 0:00:04]} d5 {
[%emt 0:00:16]} 3. e3 {[%emt 0:00:19]} c5 {[%emt 0:00:26]} 4. Nc3 {[%emt 0:00:
11]} a6 {[%emt 0:01:27]} 5. dxc5 {[%emt 0:00:15]} Nc6 {[%emt 0:00:18]} 6. Nf3 {
[%emt 0:01:24]} e6 {[%emt 0:00:48]} 7. Na4 {[%emt 0:01:25]} Bxc5 {[%emt 0:02:
54]} 8. Nxc5 {[%emt 0:00:00]} Qa5+ {[%emt 0:01:30]} 9. c3 {[%emt 0:00:45]} Qxc5
{[%emt 0:00:00]} 10. Bd3 {[%emt 0:06:04]} O-O {[%emt 0:01:44]} 11. O-O {
[%emt 0:00:21]} h6 {[%emt 0:03:32]} 12. Ne5 {[%emt 0:09:00]} Qe7 {[%emt 0:04:
16]} 13. Qf3 {[%emt 0:06:23]} Nxe5 {[%emt 0:05:49]} 14. Bxe5 {[%emt 0:00:49]}
Nd7 {[%emt 0:00:18]} 15. Bg3 {[%emt 0:00:34]} Nc5 {[%emt 0:05:31]} 16. Bc2 {
[%emt 0:02:37]} Bd7 {[%emt 0:02:40]} 17. b4 {[%emt 0:12:59]} Na4 {[%emt 0:00:
32]} 18. e4 {[%emt 0:00:11]} Rfc8 {[%emt 0:25:28]} 19. Bxa4 {[%emt 0:03:22]}
Bxa4 {[%emt 0:00:23]} 20. exd5 {[%emt 0:00:16]} exd5 {[%emt 0:00:20]} 21. Rfe1
{[%emt 0:04:31]} Qd7 {[%emt 0:03:51]} 22. Be5 {[%emt 0:03:24]} f6 {[%emt 0:02:
45]} 23. Bd4 {[%emt 0:01:26]} Re8 {[%emt 0:03:23]} 24. Qg3 {[%emt 0:06:47]} Qf7
{[%emt 0:00:42]} 25. f3 {[%emt 0:04:12]} Bb5 {[%emt 0:04:17]} 26. a4 {[%emt 0:
01:05]} Bc4 {[%emt 0:00:17]} 27. h3 {[%emt 0:02:30]} Kh7 {[%emt 0:01:33]} 28.
a5 {[%emt 0:03:05]} Qd7 {[%emt 0:02:17]} 29. Qf2 {[%emt 0:00:21]} Qf5 {[%emt 0:
04:29]} 30. Qg3 {[%emt 0:01:32]} Bb5 {[%emt 0:03:36]} 31. Qc7 {[%emt 0:05:30]}
Bc6 {[%emt 0:02:00]} 32. Qg3 {[%emt 0:01:21]} Rac8 {[%emt 0:03:07]} 33. Kh2 {
[%emt 0:01:47]} Qg5 {[%emt 0:02:30]} 34. Qxg5 {[%emt 0:02:47]} hxg5 {[%emt 0:
00:04]} 35. Kg3 {[%emt 0:01:40]} Kg6 {[%emt 0:00:30]} 36. Kf2 {[%emt 0:05:24]}
Kf5 {[%emt 0:01:53]} 37. Rxe8 {[%emt 0:00:34]} Rxe8 {[%emt 0:00:05]} 38. Re1 {
[%emt 0:00:01]} Rxe1 39. Kxe1 {[%emt 0:00:01]} Bb5 {[%emt 0:01:21]} 40. Kf2 {
[%emt 0:00:21]} Bc6 {[%emt 0:00:15]} 41. Ke3 {[%emt 0:31:08]} Bb5 {[%emt 0:30:
16]} 42. Kf2 {[%emt 0:00:09]} Bc6 {[%emt 0:00:07]} 43. Ke3 {[%emt 0:00:06]} Bb5
{[%emt 0:00:04]} 1/2-1/2